bitfinex-derivatives/quotes_ETHF0:USTF0_20260305
["timestamp","ask_amount","ask_price","bid_price","bid_amount"]
[1772748002271,3.40916889,2081.9,2081.2,4.38293152]
[1772748002475,3.40916889,2081.9,2081.2,45.18293152]
[1772748002674,3.40916889,2081.9,2081.3,4.37948425]
[1772748015784,3.32144444,2081.7,2081.2,0.00344727]
[1772748016190,3.32144444,2081.7,2081.2,4.38293152]
[1772748017390,3.32144444,2081.7,2081.1,4.37948425]
[1772748018393,3.32144444,2081.7,2081.1,4.38335565]
[1772748027601,0.24018,2081.6,2081.1,4.38335565]
[1772748027800,3.29789382,2081.5,2080.9,4.37948425]
[1772748028803,3.29789382,2081.5,2080.9,4.38522741]
[1772748037912,3.44731914,2081.0,2080.6,4.29081983]
[1772748038211,3.4646883,2081.0,2080.6,4.29081983]
[1772748038812,3.4646883,2081.0,2080.6,4.296072]
[1772748039009,0.24025,2081.0,2080.6,4.296072]
[1772748039218,3.05564166,2081.2,2080.6,4.296072]
[1772748043610,11.01364166,2081.2,2080.6,4.296072]
[1772748045116,2.89365344,2081.1,2080.6,4.296072]
[1772748046918,2.89365344,2081.1,2080.6,0.00525217]
[1772748049011,2.89365344,2081.1,2080.6,4.31338849]
[1772748049813,3.13390344,2081.1,2080.6,0.00525217]
[1772748050014,3.13390344,2081.1,2080.4,4.30813632]
[1772748051111,3.13390344,2081.1,2080.4,4.31171499]
[1772748053926,3.46520937,2080.7,2080.4,0.00357867]
[1772748054121,11.43420937,2080.7,2080.3,4.30813632]
[1772748054423,0.24028,2080.8,2080.3,4.30813632]
[1772748054625,8.21028,2080.8,2080.3,4.30813632]
[1772748054825,11.67493453,2080.8,2080.3,4.30813632]
[1772748055025,11.67493453,2080.8,2080.3,4.31260985]
[1772748058929,3.4543145,2080.7,2080.3,4.31260985]
[1772748062527,3.4543145,2080.7,2079.3,6.367]
[1772748062528,0.24038,2080.0,2079.3,4.23444151]
[1772748062731,7.375,2080.0,2079.7,4.23444151]
[1772748063031,7.987,2080.1,2079.7,4.23444151]
[1772748063230,7.988,2080.1,2079.9,4.23444151]
[1772748063531,7.99238266,2080.1,2079.9,4.24053277]
[1772748065128,4.29082167,2080.5,2080.0,11.99176644]
[1772748065329,12.0375224,2080.4,2080.0,11.99176644]
[1772748066329,7.996,2080.3,2080.0,11.99176644]
[1772748067237,4.00995256,2080.2,2079.9,0.00609126]
[1772748067534,4.00995256,2080.2,2079.9,0.73405956]
[1772748068227,4.00995256,2080.2,2079.7,4.23444151]
[1772748068426,4.00995256,2080.2,2079.7,4.23899795]
[1772748073432,4.00995256,2080.2,2079.8,4.96850107]
[1772748077033,4.00995256,2080.2,2079.8,0.73405956]
[1772748081544,4.00995256,2080.2,2079.7,3.47305751]
[1772748082646,4.00995256,2080.2,2079.7,3.47710043]
[1772748083247,4.25030256,2080.2,2079.7,3.47710043]
[1772748083539,4.00995256,2080.2,2079.2,4.23444151]
[1772748083745,0.24039,2079.9,2079.2,4.23444151]
[1772748084138,8.076,2079.8,2079.4,4.23444151]
[1772748084341,7.43564511,2079.8,2079.4,4.23444151]
[1772748084846,7.43564511,2079.8,2079.4,4.24037544]
[1772748088351,0.24548746,2080.4,2079.4,4.24037544]
[1772748088352,0.24548746,2080.4,2079.7,4.23444151]
[1772748088557,0.24548746,2080.4,2079.9,4.23444151]
[1772748091256,4.07905285,2080.4,2079.9,4.23444151]
[1772748091853,0.24548746,2080.4,2079.9,4.23444151]
[1772748098356,5.55494812,2080.3,2079.9,4.23444151]
[1772748103465,8.174,2080.4,2080.1,4.60576325]
[1772748103763,7.97029742,2080.4,2080.1,4.60576325]
[1772748104466,7.97505049,2080.4,2080.1,4.60576325]
[1772748107672,12.82576949,2080.4,2080.1,4.60576325]
[1772748107969,4.850719,2080.3,2079.9,4.60576325]
[1772748108364,12.82576949,2080.4,2079.9,4.60576325]
[1772748108761,4.850719,2080.7,2080.1,4.60576325]
[1772748108960,8.211,2080.6,2080.3,4.60576325]
[1772748109570,13.061719,2080.6,2080.3,4.60576325]
[1772748109972,13.06610707,2080.6,2080.3,4.60576325]
[1772748116074,8.255,2080.6,2080.3,4.60576325]
[1772748117076,8.26000028,2080.6,2080.3,4.60576325]
[1772748117276,13.11071928,2080.6,2079.9,4.60576325]
[1772748117671,8.26000028,2080.6,2079.9,4.60576325]
[1772748117875,8.27200028,2080.6,2080.1,4.60576325]
[1772748118077,8.27300028,2080.6,2080.3,4.60576325]
[1772748119575,8.28100028,2080.6,2080.3,4.60576325]
[1772748120576,13.09045196,2080.6,2080.3,4.60576325]
[1772748122279,8.28100028,2080.6,2080.3,4.60576325]
[1772748124377,8.30600028,2080.6,2080.3,4.60576325]
[1772748125781,13.11545196,2080.6,2080.3,4.60576325]
[1772748125982,8.309,2080.7,2080.3,4.60576325]
[1772748126283,13.11845168,2080.7,2080.3,4.60576325]
[1772748126983,0.00617134,2080.7,2080.3,4.60576325]
[1772748127182,8.32017134,2080.7,2080.3,4.60576325]
[1772748127982,13.12962302,2080.7,2080.3,4.60576325]
[1772748133689,0.00617134,2080.7,2080.3,4.60576325]
[1772748133884,8.35417134,2080.7,2080.3,4.60576325]
[1772748138087,13.16362302,2080.7,2080.3,4.60576325]
[1772748138288,4.80945168,2080.6,2080.3,4.60576325]
[1772748138686,13.16362302,2080.7,2080.3,4.60576325]
[1772748139488,4.80945168,2080.6,2080.3,4.60576325]
[1772748139888,13.16362302,2080.7,2080.3,4.60576325]
[1772748140588,4.80945168,2080.6,2080.3,4.60576325]
[1772748141986,4.80945168,2080.6,2079.8,4.73354687]
[1772748147088,4.80945168,2080.4,2079.8,4.73354687]
[1772748149689,4.5109289,2080.2,2079.7,4.44860695]
[1772748149992,4.5109289,2080.2,2079.5,4.44860695]
[1772748160999,0.00617134,2080.7,2079.5,4.44860695]
[1772748161000,4.5109289,2080.5,2079.5,4.44860695]
[1772748161205,4.5109289,2080.3,2079.5,4.44860695]
[1772748163103,12.9649289,2080.4,2079.5,4.44860695]
[1772748167105,4.5109289,2080.3,2079.5,4.44860695]
[1772748171606,4.7512489,2080.5,2079.6,4.44860695]
[1772748171806,4.5109289,2080.5,2079.6,4.44860695]
[1772748173210,8.47017134,2080.7,2079.8,6.48194911]
[1772748173211,0.00617134,2080.7,2079.8,6.48194911]
[1772748173414,4.51710024,2080.7,2079.9,4.44860695]
[1772748174912,8.465,2081.2,2080.1,4.44860695]
[1772748175108,5.46577041,2081.1,2080.1,4.44860695]
[1772748175409,4.5109289,2081.2,2080.1,4.44860695]
[1772748175812,4.5109289,2081.2,2080.3,4.44860695]
[1772748176012,4.51625804,2081.2,2080.3,4.44860695]
[1772748176714,4.5109289,2081.1,2080.3,4.44860695]
[1772748190627,4.67505245,2081.0,2080.3,4.44860695]
[1772748205647,4.67505245,2081.0,2080.4,4.36078574]
[1772748205938,4.91526245,2081.4,2081.0,4.36078574]
[1772748206135,4.91526245,2081.4,2080.8,4.36078574]
[1772748207039,4.92138962,2081.4,2080.8,4.36454856]
[1772748207441,0.24633717,2081.4,2080.8,4.36454856]
[1772748207636,4.92138962,2081.4,2080.8,4.36454856]
[1772748208038,4.68117962,2081.4,2080.8,4.36454856]
[1772748210342,4.74277564,2081.5,2081.0,4.63268859]
[1772748210744,4.74277564,2081.7,2081.0,4.63268859]
[1772748211445,4.74849793,2081.7,2081.0,4.63268859]
[1772748216550,4.74277564,2081.3,2080.8,4.63645141]
[1772748217051,4.74277564,2080.9,2080.3,4.63268859]
[1772748217444,4.74277564,2080.7,2080.1,4.63268859]
[1772748217653,4.74277564,2080.5,2079.8,4.63268859]
[1772748218048,4.74277564,2080.5,2080.0,4.63268859]
[1772748218248,4.74277564,2080.5,2079.9,45.43268859]
[1772748218453,4.74277564,2080.5,2079.9,40.8]
[1772748218654,4.74277564,2080.4,2079.9,40.8]
[1772748218848,4.74277564,2080.4,2079.8,4.63812061]
[1772748219249,4.74277564,2080.4,2079.8,45.43812061]
[1772748221059,4.74277564,2080.4,2079.9,4.63268859]
[1772748222157,13.24377564,2080.4,2079.9,4.63268859]
[1772748222457,4.74277564,2080.3,2079.9,4.63268859]
[1772748222856,4.74277564,2080.3,2079.8,0.00543202]
[1772748223560,4.74277564,2080.3,2079.8,4.63812061]
[1772748223961,4.74277564,2080.3,2079.8,0.00543202]
[1772748226661,4.74277564,2080.3,2079.8,4.63812061]
[1772748226863,4.74277564,2080.3,2079.8,0.00543202]
[1772748228565,4.74277564,2080.1,2079.6,40.8]
[1772748228763,4.74277564,2080.1,2079.5,4.63268859]
[1772748228964,8.517,2080.1,2079.6,4.63268859]
[1772748229159,4.74277564,2080.0,2079.6,4.63268859]
[1772748229466,8.518,2080.2,2079.6,4.63268859]
[1772748229661,4.74277564,2080.1,2079.6,4.63816147]
[1772748230055,4.74277564,2080.1,2079.6,0.00547288]
[1772748231168,4.74277564,2080.1,2079.6,4.63816147]
[1772748234365,13.27477564,2080.0,2079.6,4.63816147]
[1772748234773,4.74277564,2079.9,2079.6,4.63816147]
[1772748236178,0.00474899,2080.2,2079.6,4.63816147]
[1772748236478,4.74277564,2080.5,2079.8,4.63268859]
[1772748237379,4.74839302,2080.5,2079.8,4.63268859]
[1772748237679,13.28377564,2080.4,2079.8,4.63268859]
[1772748237875,4.74277564,2080.3,2079.8,4.63268859]
[1772748240181,4.74277564,2080.3,2079.6,0.00547288]
[1772748240478,4.74277564,2080.3,2079.6,4.51292068]
[1772748243983,4.49224072,2080.1,2079.6,4.51292068]
[1772748244374,4.49224072,2080.1,2079.5,4.5074478]
[1772748244572,4.49224072,2079.9,2079.5,4.5074478]
[1772748244974,4.49224072,2079.9,2079.4,45.3074478]
[1772748245384,4.49224072,2079.9,2079.4,45.31367922]
[1772748246479,8.556,2080.0,2079.4,0.00623142]
[1772748246480,4.49224072,2079.7,2079.4,0.00623142]
[1772748246685,4.49224072,2079.7,2079.2,4.5074478]
[1772748247085,4.49224072,2079.7,2079.0,4.5074478]
[1772748247283,2.27344808,2079.8,2079.0,4.5074478]
[1772748247284,4.49224072,2079.5,2079.0,4.5074478]
[1772748247578,4.49224072,2079.5,2079.0,4.51148244]
[1772748247777,6.7656888,2079.8,2079.0,4.51148244]
[1772748247982,13.05524072,2079.7,2079.1,4.5074478]
[1772748249885,4.49224072,2079.6,2079.1,4.5074478]
[1772748258895,4.49224072,2079.6,2079.0,4.51148244]
[1772748260291,4.49224072,2079.4,2079.0,0.00403464]
[1772748261188,4.49224072,2079.4,2079.0,4.51148244]
[1772748262494,4.49224072,2079.4,2079.0,0.00403464]
[1772748262695,4.49224072,2079.4,2078.9,45.3074478]
[1772748263694,4.49224072,2079.4,2078.9,45.31086301]
[1772748264785,0.24045,2079.3,2078.9,4.51086301]
[1772748264991,4.49224072,2079.2,2078.6,4.5074478]
[1772748265495,4.49224072,2079.0,2078.4,4.5074478]
[1772748265887,4.49224072,2079.0,2078.4,45.3074478]
[1772748266193,4.49705636,2079.0,2078.4,45.3136704]
[1772748267898,4.49705636,2079.0,2078.5,4.5074478]
[1772748269396,4.49705636,2079.0,2078.5,4.5008101]
[1772748270092,13.10005636,2079.0,2078.5,4.5008101]
[1772748270491,4.5406992,2079.5,2078.5,4.5008101]
[1772748270694,4.5406992,2079.5,2078.7,4.61036397]
[1772748271493,4.54544606,2079.5,2078.7,4.61036397]
[1772748272396,0.00474686,2079.5,2078.7,4.61036397]
[1772748275199,4.5406992,2079.9,2078.8,4.61036397]
[1772748275999,4.5406992,2079.9,2079.0,4.61036397]
[1772748276200,4.54527828,2079.9,2079.0,4.61036397]
[1772748281403,4.54527828,2079.9,2079.2,4.61036397]
[1772748281706,4.54527828,2079.9,2078.8,4.61036397]
[1772748281707,4.5406992,2079.5,2078.8,4.61036397]
[1772748282104,4.5406992,2079.5,2078.9,4.61036397]
[1772748295807,4.5406992,2079.0,2078.5,4.61036397]
[1772748298112,4.5406992,2079.0,2078.0,4.61036397]
[1772748298313,4.5406992,2079.0,2077.9,0.0062226]
[1772748298314,0.24055,2078.4,2077.9,0.0062226]
[1772748298617,0.24055,2078.4,2077.7,4.61036397]
[1772748298618,4.5406992,2078.3,2077.7,4.61036397]
[1772748298916,4.5406992,2078.1,2077.7,4.61036397]
[1772748299110,4.5406992,2078.1,2077.8,0.0062226]
[1772748299317,4.5452562,2078.1,2077.8,0.0062226]
[1772748302321,4.5452562,2078.1,2077.8,4.54919469]
[1772748303819,4.5452562,2078.1,2077.8,0.0062226]
[1772748304020,4.5452562,2078.1,2077.1,4.54297209]
[1772748304917,0.004557,2078.1,2077.1,4.54297209]
[1772748305125,0.004557,2078.1,2077.6,4.54297209]
[1772748312529,0.004557,2078.1,2077.6,6.58103944]
[1772748312730,4.13589645,2078.1,2077.7,4.54297209]
[1772748313027,0.004557,2078.1,2077.7,4.54297209]
[1772748313826,4.13133945,2078.4,2077.7,4.54297209]
[1772748314830,4.13600913,2078.4,2077.7,4.54297209]
[1772748318729,0.00466968,2078.4,2077.9,4.54297209]
[1772748319927,4.37185945,2078.7,2078.1,4.54297209]
[1772748320136,0.24052,2078.7,2078.1,4.54297209]
[1772748321029,0.24534511,2078.7,2078.1,4.54297209]
[1772748322535,0.00482511,2078.7,2078.1,4.54297209]
[1772748330343,0.00482511,2078.7,2078.3,4.05876182]
[1772748331347,4.12578625,2078.9,2078.3,4.05876182]
[1772748332345,4.13100738,2078.9,2078.3,4.05876182]
[1772748336150,0.00522113,2078.9,2078.3,4.05876182]
[1772748336340,0.24047,2079.2,2078.7,4.05876182]
[1772748337248,0.2446829,2079.2,2078.7,4.06292211]
[1772748337443,8.615,2079.6,2078.7,4.06292211]
[1772748337648,5.52619776,2079.5,2078.7,4.06292211]
[1772748337845,9.65198401,2079.5,2078.7,4.06292211]
[1772748338046,4.12578625,2079.5,2078.7,4.06292211]
[1772748338548,4.12924675,2079.5,2078.7,4.06292211]
[1772748339147,6.1673141,2079.5,2078.7,4.06292211]
[1772748343244,4.12924675,2079.5,2078.7,4.06292211]
[1772748348248,0.0034605,2079.5,2078.7,4.06292211]
[1772748348448,0.0034605,2079.5,2078.9,4.05876182]
[1772748350650,2.27847735,2079.7,2078.9,4.05876182]
[1772748350856,0.24041,2079.7,2079.1,4.05876182]
[1772748351254,4.36619625,2079.7,2079.1,4.05876182]
[1772748351850,4.37068084,2079.7,2079.1,4.05876182]
[1772748355357,4.12578625,2079.6,2079.1,4.05876182]
[1772748361258,0.24489459,2079.7,2079.1,4.05876182]
[1772748361459,4.45350257,2079.7,2079.1,4.05876182]
[1772748370064,4.20860798,2079.6,2079.1,4.05876182]
[1772748372166,4.45350257,2079.7,2079.1,4.05876182]
[1772748372961,0.00448459,2079.7,2079.1,4.05876182]
[1772748373165,0.00448459,2079.7,2079.3,4.00631355]
[1772748373564,5.54565791,2079.9,2079.3,4.00631355]
[1772748373765,4.20860798,2079.9,2079.3,4.00631355]
[1772748374570,4.21424239,2079.9,2079.3,4.00631355]
[1772748376066,0.00563441,2079.9,2079.3,4.00631355]
[1772748378166,12.85860798,2080.2,2079.3,4.00631355]
[1772748378366,4.20860798,2080.2,2079.3,4.00631355]
[1772748378769,4.20860798,2080.2,2079.5,4.00631355]
[1772748379169,0.0036976,2080.2,2079.5,4.00631355]
[1772748382871,4.20860798,2080.0,2079.5,4.00631355]
[1772748383871,4.21230558,2080.2,2079.5,4.00631355]
[1772748384071,0.0036976,2080.2,2079.5,4.00631355]
[1772748384271,4.44891798,2080.6,2079.5,4.00631355]
[1772748384473,4.44891798,2080.6,2079.7,4.00631355]
[1772748384771,4.20860798,2080.7,2079.7,4.00631355]
[1772748385171,0.00344414,2080.7,2079.7,4.00631355]
[1772748385670,4.21205212,2080.7,2079.7,4.00631355]
[1772748386176,0.00344414,2080.7,2079.7,4.00631355]
[1772748386873,4.45234212,2080.7,2079.7,4.00631355]
[1772748389276,4.21205212,2080.7,2079.7,4.00631355]
[1772748389476,3.85279818,2080.5,2079.7,4.00631355]
[1772748390078,3.86493047,2080.3,2079.7,4.00631355]
[1772748391479,0.00344414,2080.7,2079.7,4.00631355]
[1772748391480,3.86493047,2080.6,2079.7,4.00631355]
[1772748391680,3.86493047,2080.4,2079.7,4.00631355]
[1772748393480,3.86493047,2080.2,2079.7,4.00631355]
[1772748394579,3.86493047,2080.6,2079.7,4.00631355]
[1772748397270,4.10524047,2080.5,2079.7,4.00631355]
[1772748399478,0.24031,2080.5,2079.7,4.00631355]
[1772748399875,4.10524047,2080.5,2079.7,4.00631355]
[1772748403781,4.10529047,2080.1,2079.7,4.00631355]
[1772748404178,2.03491165,2080.5,2079.7,4.00631355]
[1772748404179,3.86493047,2080.5,2079.7,4.00631355]
[1772748404575,4.10523047,2080.6,2079.7,4.00631355]
[1772748411288,3.86837461,2080.7,2079.7,4.00631355]
[1772748412586,0.00344414,2080.7,2079.7,4.00631355]
[1772748413185,3.86493047,2080.5,2079.7,4.00631355]
[1772748413488,3.86493047,2080.1,2079.3,3.92033721]
[1772748413988,3.86493047,2079.9,2079.3,3.92033721]
[1772748414492,3.86493047,2080.4,2079.3,3.92033721]
[1772748414692,3.86493047,2080.2,2079.3,3.92033721]
[1772748419796,4.10525047,2080.5,2079.5,3.92033721]
[1772748421493,0.00344414,2080.7,2079.5,4.16074721]
[1772748421698,3.78931016,2080.6,2079.7,3.74007601]
[1772748425802,0.00344414,2080.7,2080.0,3.74007601]
[1772748436507,0.00344414,2080.7,2080.0,5.77321896]
[1772748436805,0.00344414,2080.7,2080.1,3.74007601]
[1772748450321,3.63475149,2081.1,2080.3,3.7007298]
[1772748450718,3.63475149,2081.3,2080.5,3.7007298]
[1772748451410,3.63949126,2081.3,2080.5,3.70467189]
[1772748452420,2.03314295,2081.2,2080.5,3.70467189]
[1772748452619,5.66789444,2081.2,2080.5,3.70467189]
[1772748459323,3.63475149,2081.1,2080.5,3.70467189]
[1772748459619,3.63949126,2081.3,2080.5,3.70467189]
[1772748462021,0.00473977,2081.3,2080.5,3.70467189]
[1772748462229,0.00473977,2081.3,2080.9,3.7007298]
[1772748462527,3.63475149,2081.5,2080.9,3.7007298]
[1772748463327,3.63874737,2081.5,2080.9,3.7007298]
[1772748469933,3.63475149,2082.6,2081.3,6.94099141]
[1772748470122,2.03314295,2082.4,2081.6,0.90713156]
[1772748470329,3.63475149,2082.3,2081.7,41.70740057]
[1772748470523,3.63475149,2082.3,2081.8,0.90740057]
[1772748470926,3.63945211,2082.3,2081.8,0.90740057]
[1772748471328,3.63945211,2082.3,2081.7,42.83314295]
[1772748471329,0.00470062,2082.3,2082.0,1.32632849]
[1772748471522,0.00470062,2082.3,2082.0,1.33026546]
[1772748471925,2.740566,2082.4,2082.0,1.33026546]
[1772748472935,0.00499583,2082.4,2082.0,1.33026546]
[1772748473532,3.18899809,2082.5,2082.0,1.33026546]
[1772748474132,0.24004,2082.8,2082.0,1.33026546]
[1772748474330,3.63475149,2082.9,2082.2,2.79367035]
[1772748474526,3.64004635,2082.9,2082.2,2.79367035]
[1772748474730,3.64004635,2082.9,2082.3,2.03314295]
[1772748474930,3.53509294,2082.9,2082.4,2.79367035]
[1772748475433,3.63475149,2083.3,2082.4,2.79367035]
[1772748475634,3.63475149,2083.1,2082.4,2.79367035]
[1772748475831,3.6396626,2083.1,2082.4,2.79367035]
[1772748476938,3.6396626,2083.1,2082.2,3.7007298]
[1772748477135,3.63475149,2082.9,2082.2,3.7007298]
[1772748480346,4.2130201,2082.7,2082.0,0.00393697]
[1772748480541,0.00491111,2083.1,2081.7,44.9276277]
[1772748480542,4.2130201,2082.3,2081.7,44.9276277]
[1772748480740,4.2130201,2082.3,2081.7,4.1276277]
[1772748481441,4.2130201,2082.3,2081.7,4.1330048]
[1772748484243,4.2130201,2082.3,2081.7,0.0053771]
[1772748485042,4.2130201,2082.1,2081.7,0.0053771]
[1772748485243,4.2130201,2081.9,2081.5,44.9276277]
[1772748485440,4.2130201,2081.9,2081.5,4.1276277]
[1772748486248,4.2130201,2081.9,2081.5,4.13376322]
[1772748486748,4.2130201,2081.9,2081.5,0.00613552]
[1772748488146,4.2130201,2081.9,2081.5,4.13376322]
[1772748491756,4.2130201,2082.2,2081.5,4.13376322]
[1772748492646,4.2130201,2082.2,2081.6,4.1276277]
[1772748499553,4.2130201,2082.4,2081.6,4.1276277]
[1772748501163,4.4531201,2082.4,2081.6,4.1276277]
[1772748502262,4.2130201,2083.9,2082.4,4.3677177]
[1772748502467,4.4529201,2084.1,2083.4,4.1276277]
[1772748503157,4.4529201,2084.1,2083.4,4.13112186]
[1772748503363,4.45645709,2084.1,2083.4,4.13112186]
[1772748504557,4.21655709,2084.1,2083.4,4.13112186]
[1772748512565,4.21655709,2084.1,2083.4,0.00349416]
[1772748512768,4.21655709,2084.1,2083.2,25.73]
[1772748513866,3.75538457,2083.9,2083.2,25.73374027]
[1772748519974,3.75538457,2083.9,2083.2,29.52512709]
[1772748520670,3.75538457,2083.7,2083.2,0.00374027]
[1772748520875,3.75538457,2083.7,2082.9,29.64038682]
[1772748521276,3.75538457,2083.7,2083.0,3.79138682]
[1772748521872,0.24003,2083.0,2082.4,7.80418898]
[1772748522078,3.75538457,2082.9,2082.2,3.79138682]
[1772748522471,3.75538457,2082.7,2082.0,3.79138682]
[1772748522969,3.75538457,2082.7,2082.0,3.79737578]
[1772748523978,3.75538457,2082.7,2082.0,0.00598896]
[1772748524380,3.75538457,2082.5,2082.0,0.00598896]
[1772748524581,3.75889026,2082.5,2082.0,0.00598896]
[1772748524780,3.75889026,2082.5,2081.8,3.79138682]
[1772748524982,3.75538457,2082.3,2081.6,29.60538682]
[1772748525475,3.75538457,2082.3,2081.7,3.79138682]
[1772748525981,3.75538457,2082.3,2081.7,3.79610129]
[1772748530187,0.00350569,2082.5,2081.7,3.79610129]
[1772748530382,3.75889026,2082.5,2081.7,3.79610129]
[1772748543299,3.50701063,2082.3,2081.7,3.79610129]
[1772748550203,3.50701063,2082.3,2081.7,7.80890345]
[1772748551405,3.50701063,2082.3,2081.9,4.01280216]
[1772748557306,3.50701063,2082.3,2081.9,2.67816914]
[1772748557508,3.50701063,2082.3,2081.6,10.97957344]
[1772748557509,3.50701063,2081.9,2081.4,3.45556938]
[1772748558110,3.50701063,2081.7,2081.3,3.45556938]
[1772748558509,3.50701063,2081.7,2081.3,3.45915423]
[1772748561113,3.50701063,2081.7,2081.3,0.00358485]
[1772748561314,3.50701063,2081.7,2081.1,3.45556938]
[1772748561817,3.50701063,2081.5,2081.0,3.45556938]
[1772748562219,3.50701063,2081.5,2081.0,3.46015491]
[1772748563310,3.50701063,2081.5,2081.0,0.00458553]
[1772748563718,3.50701063,2081.5,2081.0,3.46015491]
[1772748565320,3.50701063,2081.5,2080.8,3.45556938]
[1772748566524,3.50701063,2081.5,2080.8,3.45930713]
[1772748567728,3.50701063,2081.3,2080.8,0.00373775]
[1772748567925,3.50701063,2081.3,2080.8,3.45930713]
[1772748568929,3.50701063,2081.3,2080.8,0.00373775]
[1772748569128,3.50701063,2081.3,2080.8,3.32533525]
[1772748569426,3.50701063,2081.3,2080.8,0.00373775]
[1772748569622,3.05821021,2081.1,2080.4,3.3215975]
[1772748570527,3.05821021,2081.1,2080.4,3.32630702]
[1772748578327,0.24023,2081.2,2080.5,2.03147217]
[1772748578528,3.37232224,2081.2,2080.5,3.19547573]
[1772748579835,2.03147217,2081.1,2080.5,3.19547573]
[1772748580235,3.13209224,2081.0,2080.5,3.19547573]
[1772748580436,3.1365953,2081.0,2080.5,3.19547573]
[1772748580931,3.13209224,2081.5,2080.6,3.19547573]
[1772748581136,3.13209224,2081.3,2080.7,3.19547573]
[1772748582037,3.13726623,2081.3,2080.7,3.19547573]
[1772748583740,0.00517399,2081.3,2080.9,3.19547573]
[1772748584239,3.13209224,2081.7,2081.1,3.19547573]
[1772748584732,3.13209224,2081.7,2080.4,0.24501952]
[1772748584733,0.24016,2081.8,2081.3,3.19547573]
[1772748585039,0.00527661,2081.8,2081.5,3.19547573]
[1772748587946,3.13736885,2081.8,2081.5,3.19547573]
[1772748588945,3.13736885,2081.8,2081.1,3.19547573]
[1772748591444,3.13736885,2081.8,2081.2,2.03147217]
[1772748591743,3.13736885,2081.8,2081.3,3.19547573]
[1772748592535,2.27164217,2081.7,2080.9,3.19547573]
[1772748592742,3.37226224,2081.7,2081.0,2.03147217]
[1772748592942,3.37226224,2081.7,2081.1,3.19547573]
[1772748593147,3.13209224,2081.6,2081.1,3.19547573]
[1772748593650,3.13209224,2081.2,2080.6,3.19547573]
[1772748594741,2.03147217,2080.9,2080.4,3.20018525]
[1772748594947,3.13209224,2080.8,2080.4,3.20018525]
[1772748595440,2.03147217,2081.3,2080.2,3.19547573]
[1772748595441,0.24029,2080.7,2080.2,3.19547573]
[1772748595749,3.37238224,2080.7,2080.2,3.19547573]
[1772748596450,3.13209224,2080.6,2080.2,3.20078471]
[1772748597244,8.353,2080.9,2080.3,2.03147217]
[1772748597447,3.13209224,2080.8,2080.4,3.19547573]
[1772748600351,2.78666835,2081.2,2080.5,2.03147217]
[1772748600553,2.78666835,2081.2,2080.6,2.78252258]
[1772748603863,2.78666835,2081.0,2080.3,2.78252258]
[1772748611667,2.78666835,2081.0,2080.4,2.78252258]
[1772748616167,2.78666835,2081.2,2080.4,2.78252258]
[1772748619771,2.78666835,2080.9,2080.4,2.78252258]
[1772748625468,0.24024,2081.1,2080.2,2.78783156]
[1772748625469,2.78666835,2080.7,2080.2,2.78783156]
[1772748626276,0.24028,2080.8,2080.2,2.78783156]
[1772748626474,3.02694835,2080.8,2080.2,2.78783156]
[1772748630276,5.96201973,2081.2,2080.5,2.54022674]
[1772748630277,2.51873,2081.2,2080.5,2.54022674]
[1772748630577,0.47994569,2081.1,2080.5,2.54022674]
[1772748630776,2.51873,2081.2,2080.5,2.54022674]
[1772748630970,0.47994491,2081.1,2080.5,2.54022674]
[1772748631168,2.75896,2081.2,2080.5,2.54022674]
[1772748631374,3.96213605,2081.4,2080.5,2.54022674]
[1772748631574,0.24018,2081.7,2080.8,2.54022674]
[1772748631773,2.75891,2081.7,2080.8,2.54022674]
[1772748632571,2.76416661,2081.8,2081.1,2.54022674]
[1772748637579,2.76416661,2081.8,2080.6,6.02636286]
[1772748637779,2.76416661,2081.8,2080.7,2.54022674]
[1772748657395,2.76416661,2081.8,2080.8,2.54022674]
[1772748660398,2.38216417,2081.6,2080.9,2.4382502]
[1772748661393,2.38216417,2081.6,2081.0,2.4382502]
[1772748664099,2.38216417,2081.4,2080.8,8.46461306]
[1772748664295,2.38216417,2081.4,2080.8,2.4382502]
[1772748668198,0.24019,2081.5,2080.8,2.4382502]
[1772748668500,2.38216417,2081.6,2080.9,2.4382502]
[1772748670605,2.38216417,2081.7,2080.9,2.4382502]
[1772748679615,0.00527661,2081.8,2080.9,2.4382502]
[1772748679616,2.38744078,2081.8,2080.9,2.4382502]
[1772748680616,2.38744078,2081.8,2081.1,2.4382502]
[1772748683307,2.38744078,2081.8,2081.2,4.46963822]
[1772748683815,2.38744078,2081.8,2081.2,2.4382502]
[1772748685917,2.38744078,2081.8,2081.5,2.4382502]
[1772748686217,1.65044663,2081.8,2081.5,2.4382502]
[1772748687116,1.65439261,2081.8,2081.5,2.4382502]
[1772748693026,2.035334,2081.8,2080.9,6.02636286]
[1772748693224,2.09791821,2081.1,2080.7,2.14765589]
[1772748698133,2.09791821,2081.1,2080.5,2.14765589]
[1772748700635,2.09791821,2081.1,2080.3,40.8]
[1772748700636,2.09791821,2081.1,2080.4,2.14765589]
[1772748701241,2.09791821,2080.4,2079.8,2.14765589]
[1772748701438,2.09791821,2080.2,2079.8,2.14765589]
[1772748702133,2.10216011,2080.2,2079.8,2.15318419]
[1772748702338,2.09791821,2080.0,2079.3,2.14765589]
[1772748703339,2.09791821,2080.0,2079.3,2.15171326]
[1772748705434,2.10216011,2080.2,2079.8,2.14765589]
[1772748707738,2.10216011,2080.2,2079.6,2.14765589]
[1772748708541,2.09791821,2080.1,2079.4,2.14765589]
[1772748709437,2.03562992,2080.2,2079.4,2.14765589]
[1772748709438,2.09791821,2080.0,2079.4,2.14765589]
[1772748716842,2.09791821,2079.9,2079.4,2.14765589]
[1772748721947,2.11360888,2080.2,2079.6,2.12568481]
[1772748722257,2.11360888,2080.2,2079.8,2.12568481]
[1772748722456,2.10936698,2080.4,2080.0,2.12568481]
[1772748723453,2.1155417,2080.4,2080.0,2.12568481]
[1772748731062,2.1155417,2080.4,2079.8,2.12568481]
[1772748748472,2.1155417,2080.4,2079.6,1.97759035]
[1772748748473,2.58718741,2080.3,2079.6,1.97759035]
[1772748748775,2.10936698,2080.3,2079.6,1.97759035]
[1772748755978,0.00617472,2080.4,2079.6,2.21800035]
[1772748756170,1.94044334,2080.8,2079.8,1.8811423]
[1772748756375,1.94044334,2080.7,2079.9,1.8811423]
[1772748757378,1.94550765,2080.7,2079.9,1.8811423]
[1772748759679,1.94044334,2080.5,2079.9,1.8811423]
[1772748760775,1.94044334,2080.3,2079.6,1.8811423]
[1772748772084,0.24034,2080.2,2079.5,6.02636286]
[1772748772292,1.94044334,2080.1,2079.5,1.8811423]
[1772748772990,1.94044334,2080.3,2079.5,1.8811423]
[1772748773188,1.94044334,2080.1,2079.5,1.8811423]
[1772748780490,1.94044334,2080.1,2079.3,1.90887147]
[1772748786695,2.00470415,2079.9,2079.3,1.90887147]
[1772748786894,2.00470415,2080.1,2079.3,1.90887147]
[1772748787601,2.00470415,2079.9,2079.3,1.90887147]
[1772748790308,2.00470415,2079.7,2079.0,1.9048141]
[1772748790598,2.00470415,2079.7,2078.7,25.334]
[1772748790599,2.03404806,2079.5,2078.7,1.9048141]
[1772748790802,2.00470415,2079.2,2078.6,1.9048141]